bitfinex/quotes_ETHUSD_20250517
["timestamp","ask_amount","ask_price","bid_price","bid_amount"]
[1747500564444,4.07431551,2454.4,2454.3,0.55]
[1747500565599,4.07481357,2454.1,2454.0,0.808]
[1747500565889,4.07481357,2454.1,2454.0,9.645]
[1747500567775,4.07481357,2454.1,2454.0,1.358]
[1747500567974,4.07481357,2454.1,2454.0,9.645]
[1747500568607,4.07469472,2454.2,2454.1,0.55]
[1747500569298,4.07457801,2454.3,2454.1,0.55]
[1747500569501,4.07464754,2454.2,2454.1,0.55]
[1747500569675,6.73048262,2454.8,2454.1,1.5145]
[1747500569879,4.07457114,2454.3,2454.1,1.5145]
[1747500570596,4.07464754,2454.2,2454.1,1.5145]
[1747500571197,4.07464754,2454.2,2454.1,8.837]
[1747500571405,14.98748262,2454.8,2454.1,8.837]
[1747500571779,4.07454927,2454.3,2454.1,8.837]
[1747500572290,4.07454927,2454.3,2454.1,0.55]
[1747500572467,4.07531176,2453.8,2453.7,9.6006582]
[1747500572672,4.07531176,2453.8,2453.7,8.7722582]
[1747500573711,13.12191176,2453.8,2453.7,0.4862582]
[1747500574683,21.12191176,2453.8,2453.7,0.4862582]
[1747500574903,30.89351216,2453.8,2453.7,0.4862582]
[1747500576196,27.06179438,2453.8,2453.7,0.4862582]
[1747500576392,4.07547784,2453.7,2453.6,0.55]
[1747500576590,4.07582487,2453.5,2453.2,1.3579]
[1747500578328,10.01455773,2454.2,2453.4,0.55]
[1747500578524,4.07541434,2453.8,2453.6,0.55]
[1747500578724,18.27055773,2454.2,2453.8,0.55]
[1747500578725,5.93988262,2454.2,2453.8,0.55]
[1747500579024,4.07500098,2454.0,2453.8,0.55]
[1747500579404,4.07499988,2454.0,2453.8,0.55]
[1747500580023,4.07514568,2453.9,2453.8,0.55]
[1747500580348,4.07500803,2454.0,2453.8,0.55]
[1747500580559,4.07514568,2453.9,2453.8,0.55]
[1747500580724,4.07514568,2453.9,2453.8,8.806]
[1747500581331,10.0145454,2454.2,2453.8,8.806]
[1747500581640,4.07482642,2454.1,2453.8,8.806]
[1747500581845,4.07499247,2454.0,2453.8,8.806]
[1747500582048,4.0749014,2454.1,2453.8,8.806]
[1747500582237,4.0750308,2454.0,2453.8,8.806]
[1747500582733,4.07514568,2453.9,2453.8,8.806]
[1747500583553,0.7906,2454.1,2453.8,0.55]
[1747500583741,4.07581006,2453.5,2453.3,0.4862582]
[1747500583944,4.07597619,2453.4,2453.1,8.7422582]
[1747500584246,4.07597619,2453.4,2453.2,0.55]
[1747500584745,4.07614233,2453.3,2453.2,0.55]
[1747500587555,4.07647466,2453.1,2453.0,0.8079]
[1747500587760,4.07647466,2453.1,2452.7,18.8931582]
[1747500587938,4.07675202,2453.0,2452.9,8.257]
[1747500588447,4.07675202,2453.0,2452.9,8.807]
[1747500589254,4.07654556,2453.1,2453.0,0.55]
[1747500590256,9.0456,2453.6,2453.0,0.55]
[1747500590443,4.07580574,2453.6,2453.2,0.55]
[1747500590645,4.07579887,2453.6,2453.4,0.55]
[1747500590962,4.07581006,2453.5,2453.4,8.807]
[1747500591462,4.07581006,2453.5,2453.1,0.7768]
[1747500591632,4.07630849,2453.2,2453.1,9.5838]
[1747500591957,4.07623583,2453.3,2453.2,0.55]
[1747500592354,4.07648393,2453.1,2452.9,1.3268]
[1747500592559,4.07648393,2453.1,2453.0,8.807]
[1747500592764,4.07638473,2453.2,2453.1,0.55]
[1747500594255,4.07601273,2453.4,2453.1,0.55]
[1747500594444,4.07615276,2453.3,2453.1,0.55]
[1747500595246,4.07607035,2453.4,2453.1,0.55]
[1747500595452,4.07615659,2453.3,2453.1,2.16983827]
[1747500597263,4.0760706,2453.4,2453.1,2.16983827]
[1747500597478,4.07551406,2453.7,2453.5,0.55]
[1747500597635,4.07551406,2453.7,2453.4,0.7941]
[1747500597636,4.0755021,2453.7,2453.6,8.808]
[1747500600375,4.07533994,2453.8,2453.7,0.55]
[1747500600677,4.07523126,2453.9,2453.7,0.55]
[1747500600877,5.93988262,2454.0,2453.7,0.55]
[1747500601028,5.93988262,2454.0,2453.7,5.9138397]
[1747500601231,5.93988262,2454.0,2453.9,1.3107]
[1747500601636,4.07461817,2454.3,2453.9,1.3107]
[1747500601836,4.07469014,2454.2,2453.9,1.3107]
[1747500602226,8.253,2454.5,2453.9,1.3107]
[1747500602227,12.32715705,2454.5,2453.9,1.3107]
[1747500602434,4.07481357,2454.1,2454.0,8.807]
[1747500602745,4.07576768,2453.6,2453.3,9.0177]
[1747500602944,4.0755551,2453.7,2453.3,9.0177]
[1747500603148,4.07528046,2453.9,2453.4,4.07586461]
[1747500603347,4.07528046,2453.9,2453.5,0.55]
[1747500603541,0.7807,2454.1,2453.5,0.55]
[1747500603742,4.07568776,2453.6,2453.4,0.55]
[1747500603947,4.07568776,2453.6,2453.5,8.807]
[1747500604156,4.07568776,2453.6,2453.1,2.10609647]
[1747500604459,4.07568776,2453.6,2453.2,8.257]
[1747500604460,4.07614233,2453.3,2453.2,8.257]
[1747500604843,4.07614233,2453.3,2453.2,8.807]
[1747500605245,4.07630849,2453.2,2453.1,8.7432582]
[1747500605452,4.07630849,2453.2,2453.1,0.4862582]
[1747500605651,4.07630849,2453.2,2453.1,8.7432582]
[1747500605957,4.07630849,2453.2,2453.1,9.2932582]
[1747500606665,4.07630849,2453.2,2453.1,1.0362582]
[1747500606846,4.07630849,2453.2,2453.1,9.2932582]
[1747500607049,4.07614233,2453.3,2453.2,0.55]
[1747500607050,4.07615535,2453.3,2453.2,0.55]
[1747500607343,0.7807,2453.6,2453.2,0.55]
[1747500607344,8.0,2453.6,2453.2,0.55]
[1747500607551,4.0758621,2453.5,2453.2,1.4307]
[1747500607761,4.07614233,2453.3,2453.2,0.55]
[1747500607940,4.07614233,2453.3,2453.2,8.807]
[1747500608135,4.07614233,2453.3,2453.2,0.55]
[1747500608471,4.85684233,2453.3,2453.2,0.55]
[1747500610555,4.07680704,2452.9,2452.8,17.601]
[1747500610756,4.06384104,2452.9,2452.8,26.403]
[1747500610957,4.06384104,2452.9,2452.8,28.1631]
[1747500611271,4.06384104,2452.9,2452.8,19.3611]
[1747500611496,4.07730571,2452.6,2452.5,8.7382582]
[1747500611944,8.0,2453.1,2452.5,8.7382582]
[1747500612274,8.0,2453.1,2452.6,0.55]
[1747500612275,4.07708505,2452.8,2452.6,0.55]
[1747500612440,4.07713947,2452.7,2452.6,0.55]
[1747500613645,4.07713947,2452.7,2452.5,0.55]
[1747500613646,0.7807,2452.7,2452.5,0.55]
[1747500613876,4.07730571,2452.6,2452.5,0.55]
[1747500614563,4.07799235,2452.2,2452.1,8.253]
[1747500614763,4.0781371,2452.1,2452.0,18.0872582]
[1747500614971,4.0781371,2452.1,2452.0,26.3402582]
[1747500615388,4.0781371,2452.1,2452.0,0.4862582]
[1747500616076,4.07846975,2451.9,2451.8,8.253]
[1747500617247,4.07727302,2452.7,2452.2,0.55]
[1747500617454,4.07727302,2452.7,2452.4,0.55]
[1747500617654,4.07730653,2452.6,2452.4,0.55]
[1747500617985,4.07747196,2452.5,2452.4,0.55]
[1747500618151,4.07738385,2452.6,2452.4,0.55]
[1747500619586,4.07738385,2452.6,2452.4,1.4304]
[1747500620085,4.07747196,2452.5,2452.4,0.55]
[1747500620495,5.93988262,2452.8,2451.9,0.7607]
[1747500620796,4.0781295,2452.2,2452.0,8.254]
[1747500621158,4.0781295,2452.2,2452.1,0.55]
[1747500621373,4.07786973,2452.3,2452.1,0.55]
[1747500621594,4.07753337,2452.5,2452.1,0.55]
[1747500621769,12.32830571,2452.6,2452.1,1.50647]
[1747500621971,4.07758822,2452.5,2452.1,1.50647]
[1747500622900,4.07732001,2452.6,2452.3,0.55]
[1747500625184,4.07719837,2452.7,2452.3,0.55]
[1747500625383,4.07719837,2452.7,2452.3,1.59540665]
[1747500626015,4.07763823,2452.4,2452.3,0.55]
[1747500626196,4.07763823,2452.4,2452.1,0.95647]
[1747500626197,4.07782754,2452.3,2452.1,0.55]
[1747500626519,0.7906,2452.6,2451.5,0.4862582]
[1747500626520,4.07846975,2451.9,2451.8,8.255]
[1747500626883,4.0783938,2452.0,2451.8,8.255]
[1747500627084,4.07845895,2452.0,2451.8,8.255]
[1747500627319,4.07804723,2452.2,2451.9,0.55]
[1747500627484,0.7906,2452.6,2451.9,4.62839038]
[1747500627685,4.07752698,2452.5,2452.1,1.3351]
[1747500627902,4.07763527,2452.5,2452.1,1.3351]
[1747500628227,4.0776528,2452.4,2452.1,1.3351]
[1747500628519,4.0776528,2452.4,2452.1,1.87643186]
[1747500629085,4.07753144,2452.5,2452.1,1.87643186]
[1747500629491,4.07764154,2452.4,2452.1,1.87643186]
[1747500629696,4.07764154,2452.4,2452.1,1.3351]
[1747500629894,4.86764563,2452.8,2452.4,0.55]
[1747500630096,4.07712909,2452.8,2452.4,8.805]
[1747500630317,4.07725965,2452.7,2452.4,8.805]
[1747500630705,4.07735351,2452.6,2452.4,8.805]
[1747500631219,4.85066399,2453.0,2452.4,8.805]
[1747500631220,12.32695249,2452.9,2452.4,9.6855]
[1747500631425,4.07697852,2452.8,2452.4,9.6855]
[1747500631589,4.07686173,2452.9,2452.4,9.6855]
[1747500631921,4.07698575,2452.8,2452.6,0.55]
[1747500632526,4.07713947,2452.7,2452.6,0.55]
[1747500633724,4.07698575,2452.8,2452.6,0.55]
[1747500633927,4.07712108,2452.8,2452.6,0.55]
[1747500634120,8.249,2453.0,2452.6,0.55]
[1747500634292,4.07711163,2452.8,2452.6,0.55]
[1747500634492,4.07713947,2452.7,2452.6,8.805]
[1747500635123,0.789,2453.3,2452.6,9.85627]
[1747500635320,4.07594784,2453.5,2453.1,0.55]
[1747500635624,4.85650678,2453.6,2453.3,0.55]
[1747500635625,4.07601582,2453.4,2453.3,0.55]
[1747500636019,4.07590522,2453.5,2453.3,0.55]
[1747500636326,0.7808,2453.8,2453.3,0.55]
[1747500636327,4.85618376,2453.8,2453.3,0.55]
[1747500636512,4.07538657,2453.8,2453.3,4.62606656]
[1747500636731,4.07538657,2453.8,2453.3,5.58276656]
[1747500637097,4.07572696,2453.6,2453.3,1.5067]
[1747500637302,9.0288,2454.0,2453.3,1.5067]
[1747500637303,4.07534392,2453.8,2453.3,5.58275966]
[1747500637720,4.07549644,2453.7,2453.3,1.5067]
[1747500638011,4.07547784,2453.7,2453.5,0.55]
[1747500638412,10.01474281,2454.1,2453.7,1.3007]
[1747500638711,4.07500534,2454.0,2453.7,9.5547]
[1747500638909,4.07518101,2453.9,2453.7,9.5547]
[1747500639111,4.07531176,2453.8,2453.7,8.804]
[1747500639300,5.93988262,2454.1,2453.5,0.7507]
[1747500639501,4.07547784,2453.7,2453.6,8.796]
[1747500641048,4.07539223,2453.8,2453.6,8.796]
[1747500641417,4.07515393,2453.9,2453.6,8.796]
[1747500641724,10.01470569,2454.1,2453.8,0.55]
[1747500641928,4.07482307,2454.1,2453.8,0.55]
[1747500642124,4.07482307,2454.1,2453.8,0.5]
[1747500642531,12.31869449,2454.2,2453.8,0.5]
[1747500642704,4.07499056,2454.0,2453.8,0.5]
[1747500643038,4.07490979,2454.1,2453.8,0.5]
[1747500643217,4.07488837,2454.1,2453.8,0.5]
[1747500643940,4.07505708,2454.0,2453.8,0.5]
[1747500645244,4.07457655,2454.3,2453.8,0.5]
[1747500645410,5.93988262,2454.6,2453.8,0.5]
[1747500645411,8.242,2454.6,2453.8,1.44967]
[1747500645615,4.07399106,2454.6,2454.2,0.55]
[1747500645827,4.07399106,2454.6,2454.0,4.07483888]
[1747500645828,4.07414952,2454.5,2454.4,0.55]
[1747500646649,4.07497962,2454.0,2453.9,8.244]
[1747500646944,4.07488798,2454.1,2453.9,8.244]
[1747500647125,4.07497962,2454.0,2453.9,8.244]
[1747500647323,4.07497962,2454.0,2453.9,8.794]
[1747500649644,8.24,2454.8,2454.2,0.55]
[1747500649835,4.07386843,2454.7,2454.2,0.55]
[1747500650031,4.07415512,2454.5,2454.2,0.55]
[1747500651155,4.07433461,2454.4,2454.2,0.55]
[1747500651711,4.07448152,2454.3,2454.2,0.55]
[1747500651916,4.07433461,2454.4,2453.7,8.7501]
[1747500652145,4.07514568,2453.9,2453.8,8.793]
[1747500652517,4.07506049,2454.0,2453.8,8.793]
[1747500654765,4.07497206,2454.1,2453.8,8.793]
[1747500656757,4.07497206,2454.1,2454.0,0.55]
[1747500657259,4.07497206,2454.1,2453.9,0.55]
[1747500658267,4.07456068,2454.3,2453.9,0.55]
[1747500658467,4.07456068,2454.3,2453.9,4.62514036]
[1747500658763,9.0266,2454.6,2453.8,8.243]
[1747500658764,4.07464754,2454.2,2454.1,0.55]
[1747500658939,4.07464754,2454.2,2454.1,8.792]
[1747500659657,4.0745345,2454.3,2454.1,8.792]
[1747500659658,4.07450953,2454.3,2454.1,8.792]
[1747500659862,4.07414952,2454.5,2454.3,0.55]
[1747500660051,4.07431551,2454.4,2454.3,0.55]
[1747500660964,4.96822201,2454.4,2454.3,0.55]
[1747500661330,0.7906,2454.6,2454.1,8.242]
[1747500661566,4.07459123,2454.3,2454.2,0.55]
[1747500661977,0.7906,2454.6,2454.0,8.242]
[1747500662176,4.07464754,2454.2,2454.1,0.55]
[1747500663043,4.0755568,2453.7,2453.5,0.7838]
[1747500663249,4.0755568,2453.7,2453.6,8.792]
[1747500663442,4.0755568,2453.7,2453.6,8.242]
[1747500663443,4.07555387,2453.7,2453.6,8.242]
[1747500663966,4.07555387,2453.7,2453.6,8.792]
[1747500664467,4.07539948,2453.8,2453.7,0.55]
[1747500665256,4.07506806,2454.0,2453.7,1.4292]
[1747500666132,4.07506806,2454.0,2453.9,0.55]
[1747500666334,10.01432065,2454.4,2453.9,4.62505774]
[1747500666674,4.07405883,2454.6,2454.3,0.55]
[1747500666876,4.07405883,2454.6,2454.5,0.55]
[1747500667370,4.07382483,2454.7,2454.5,0.55]
[1747500667569,8.232,2455.2,2454.6,4.07382128]
[1747500667876,4.07300025,2455.2,2454.9,0.55]
[1747500668035,4.71125793,2455.4,2455.1,0.55]
[1747500668036,0.63859764,2455.4,2455.1,0.55]
[1747500668233,0.63859764,2455.4,2455.3,0.55]
[1747500668438,0.63859764,2455.4,2455.3,4.62282205]
[1747500668633,0.63859764,2455.4,2455.3,5.57485483]
[1747500669243,0.63859764,2455.4,2455.3,13.57485483]
[1747500669638,4.07216684,2455.7,2455.3,9.89148156]
[1747500669837,4.73877131,2455.8,2455.5,0.55]
[1747500670272,4.07216175,2455.7,2455.5,0.55]
[1747500670572,4.73874709,2455.8,2455.5,0.55]
[1747500670738,4.07216748,2455.7,2455.4,0.55]
[1747500670934,4.07216748,2455.7,2455.6,8.781]
[1747500671375,4.07216748,2455.7,2455.6,0.55]
[1747500671561,4.95325099,2455.7,2455.6,8.779]
[1747500671761,4.07216748,2455.7,2455.6,0.55]
[1747500672575,0.66666667,2455.8,2455.7,0.55]
[1747500672875,0.66666667,2455.8,2455.6,0.55]
[1747500674179,4.07215865,2455.7,2455.6,0.55]
[1747500674357,4.07215865,2455.7,2455.6,8.778]
[1747500675160,4.0723318,2455.6,2455.3,0.55]
[1747500675483,0.66666667,2455.8,2455.5,8.55]
[1747500675675,0.66666667,2455.8,2455.5,0.55]
[1747500675882,0.7906,2456.6,2455.7,0.55]
[1747500676075,4.07091627,2456.5,2456.1,1.382]
[1747500676281,4.07091627,2456.5,2456.3,0.55]
[1747500676505,8.226,2456.8,2456.3,0.55]
[1747500676683,4.0704548,2456.8,2456.3,1.55170711]
[1747500677000,0.7906,2457.2,2456.7,0.55]
[1747500677174,12.29524423,2457.5,2456.8,0.55]
[1747500677482,4.07016972,2456.9,2456.8,0.55]
[1747500677659,4.07016972,2456.9,2456.8,8.777]
[1747500677866,4.06986928,2457.1,2456.9,0.55]
[1747500677867,4.06995163,2457.1,2456.9,0.55]
[1747500678083,4.292,2459.1,2456.9,0.55]
[1747500678084,0.7906,2457.9,2457.0,0.832]
[1747500678272,4.06932645,2457.5,2457.1,0.55]
[1747500678585,4.06936193,2457.4,2457.1,0.55]
[1747500678759,4.06924542,2457.5,2457.1,0.55]
[1747500678949,4.0695398,2457.3,2457.1,0.55]
[1747500679154,0.7906,2457.9,2457.1,0.55]
[1747500679355,4.06945498,2457.4,2457.1,0.55]
[1747500679582,4.06952951,2457.3,2457.1,0.55]
[1747500679785,4.0692413,2457.5,2456.8,0.55]
[1747500679995,8.48590766,2457.8,2457.0,0.55]
[1747500680297,4.07028958,2456.9,2456.7,0.784]
[1747500680597,4.07073289,2456.6,2456.4,0.784]
[1747500680799,4.06983842,2457.1,2456.2,8.225]
[1747500680967,12.62211778,2457.3,2456.2,8.225]
[1747500680968,8.7904,2457.3,2456.2,8.225]
[1747500681263,4.07000038,2457.1,2456.2,8.225]
[1747500681467,4.06968699,2457.2,2456.9,0.55]
[1747500681804,4.06968699,2457.2,2457.1,0.55]
[1747500681971,4.06963001,2457.3,2457.1,0.55]
[1747500682302,4.06940622,2457.4,2457.1,0.55]
[1747500682503,4.06965564,2457.3,2457.1,0.55]
[1747500682702,4.0695434,2457.3,2457.1,0.55]
[1747500683008,13.08026436,2457.7,2457.1,0.55]
[1747500683189,4.06967279,2457.2,2457.1,0.55]
[1747500683395,4.06934158,2457.4,2456.9,0.55]
[1747500683699,4.07000407,2457.0,2456.9,0.55]
[1747500683901,4.07016972,2456.9,2456.8,0.784]
[1747500684071,4.07016972,2456.9,2456.8,9.558]
[1747500684474,4.07005717,2457.0,2456.9,0.55]
[1747500684912,4.06980222,2457.2,2456.9,0.55]
[1747500685615,4.06939362,2457.4,2456.9,1.91284919]
[1747500686003,4.06951655,2457.3,2456.9,1.91284919]
[1747500686195,4.06943002,2457.4,2456.9,1.91284919]
[1747500686510,4.06953613,2457.3,2457.1,0.55]
[1747500686714,4.06967279,2457.2,2457.1,0.55]
[1747500686917,4.07008175,2457.0,2456.9,8.773]
[1747500687913,4.06983842,2457.1,2457.0,0.55]
[1747500688218,4.06983842,2457.1,2456.3,15.27773418]
[1747500688219,4.07046647,2456.8,2456.5,8.223]
[1747500688414,4.07066677,2456.6,2456.5,8.223]
[1747500689223,4.07058927,2456.7,2456.6,0.55]
[1747500690233,4.07079054,2456.6,2456.4,0.55]
[1747500690523,4.07079054,2456.6,2456.5,0.55]
[1747500692328,6.73028262,2457.2,2456.6,0.55]
[1747500692549,4.07016972,2456.9,2456.8,0.55]
[1747500694216,4.07065167,2456.7,2456.4,0.7511]
[1747500694405,4.07112694,2456.4,2456.1,18.3553]
[1747500694605,0.7906,2456.9,2456.2,8.223]
[1747500694606,4.07074433,2456.6,2456.2,8.223]
[1747500694835,4.07094011,2456.5,2456.3,0.55]
[1747500695035,4.07094011,2456.5,2456.2,8.223]
[1747500695235,8.216,2457.0,2456.4,0.55]
[1747500695543,4.07025514,2456.9,2456.6,0.55]
[1747500695744,4.07025514,2456.9,2456.8,0.55]
[1747500695923,4.07025514,2456.9,2456.8,8.773]
[1747500696324,4.07052411,2456.7,2456.6,0.55]
[1747500696628,4.07050107,2456.7,2456.6,8.773]
[1747500697419,4.07000407,2457.0,2456.7,0.55]
[1747500697644,4.07033539,2456.8,2456.7,0.55]
[1747500697844,4.07033539,2456.8,2456.3,0.55]
[1747500697845,4.07073148,2456.6,2456.3,0.55]
[1747500698050,4.07073148,2456.6,2456.5,0.55]
[1747500698255,5.93988262,2457.2,2456.5,0.55]
[1747500698548,4.07007608,2457.0,2456.9,0.55]
[1747500698724,4.07007608,2457.0,2456.9,8.773]
[1747500700150,4.07007608,2457.0,2456.3,1.2887582]
[1747500700336,4.07082937,2456.6,2456.4,8.765]
[1747500700545,4.07083248,2456.5,2456.4,0.55]
[1747500700723,4.0709982,2456.4,2456.3,1.2887582]
[1747500700923,4.0709982,2456.4,2456.3,9.89197687]
[1747500701135,4.07092514,2456.5,2456.3,9.89197687]
[1747500701335,4.07092514,2456.5,2456.4,0.55]
[1747500702733,13.07577836,2456.9,2456.4,1.98241636]
[1747500702734,4.07038864,2456.8,2456.4,1.98241636]
[1747500702932,4.07024668,2456.9,2456.4,1.98241636]
[1747500703131,4.06983842,2457.1,2456.6,1.3525]
[1747500703132,4.07012703,2457.0,2456.6,1.3525]
[1747500703353,4.07018299,2456.9,2456.6,1.3525]
[1747500703561,4.07018299,2456.9,2456.8,0.55]
[1747500703865,4.07018299,2456.9,2456.8,8.765]
[1747500704534,4.07004081,2457.0,2456.8,8.765]
[1747500705042,4.0699055,2457.1,2456.8,8.765]
[1747500705252,10.00958268,2457.2,2456.8,8.765]
[1747500705436,4.06992925,2457.1,2456.8,8.765]
[1747500705640,5.93988262,2457.6,2456.8,10.12880756]
[1747500705822,4.06951647,2457.3,2456.8,14.19906749]
[1747500706249,4.0694315,2457.4,2457.0,0.55]
[1747500706445,4.0686793,2457.8,2457.2,4.61966515]
[1747500706725,10.00839605,2458.0,2457.6,0.55]
[1747500706926,5.93988262,2458.5,2457.6,0.55]
[1747500707170,4.06787837,2458.3,2458.0,0.55]
[1747500707340,4.06777219,2458.4,2458.1,8.214]
[1747500707663,4.06800354,2458.3,2458.1,8.214]
[1747500708161,8.0,2458.6,2457.7,0.55]
[1747500708368,4.06834825,2458.0,2457.9,0.55]
[1747500708731,4.06828037,2458.1,2457.9,0.55]
[1747500709271,4.06809057,2458.2,2457.9,0.55]
[1747500709471,4.0676863,2458.4,2457.9,0.55]
[1747500709766,4.06807217,2458.2,2458.1,0.55]
[1747500709927,4.06851194,2458.0,2457.7,0.4862582]
[1747500710127,4.06851194,2458.0,2457.8,8.764]
[1747500710327,4.06835443,2458.0,2457.8,8.764]
[1747500710524,4.06851377,2457.9,2457.8,0.55]
[1747500710731,4.06851377,2457.9,2457.8,8.763]
[1747500711298,4.06881943,2457.8,2457.7,0.55]
[1747500711569,4.0686793,2457.8,2457.6,0.7664]
[1747500711769,4.0686793,2457.8,2457.7,8.763]
[1747500712067,8.0,2458.3,2457.3,8.211]
[1747500712068,0.7733,2458.0,2457.3,0.7837]
[1747500712270,4.06917599,2457.5,2457.4,8.213]
[1747500712488,4.06917599,2457.5,2457.4,0.55]
[1747500712695,4.06950718,2457.3,2457.2,0.4862582]
[1747500713249,4.06950718,2457.3,2457.2,1.0362582]
[1747500714045,4.06970317,2457.2,2456.8,8.213]
[1747500714245,4.84279614,2457.4,2456.8,0.89967]
[1747500714458,4.0700979,2457.0,2456.9,0.55]
[1747500715072,4.07033539,2456.8,2456.7,0.7837]
[1747500715278,4.07033539,2456.8,2456.7,8.9967]
[1747500715489,4.07033539,2456.8,2456.7,9.5467]
[1747500715862,4.07023181,2456.9,2456.8,0.55]
[1747500717357,4.07023181,2456.9,2456.8,1.50467]
[1747500719092,4.07072597,2456.6,2456.5,0.55]
[1747500719388,4.07057878,2456.7,2456.5,8.764]
[1747500719575,4.07066677,2456.6,2456.5,8.764]
[1747500720765,4.07116394,2456.3,2456.2,1.2693582]
[1747500720961,4.07116394,2456.3,2456.2,9.4833582]
[1747500721193,4.07116394,2456.3,2456.2,9.71346844]
[1747500722399,4.07116394,2456.3,2456.2,10.26346844]
[1747500722823,4.07199283,2455.8,2455.7,0.7831]
[1747500723163,4.07199283,2455.8,2455.7,8.9971]
[1747500723679,4.07189985,2455.9,2455.8,0.55]
[1747500723884,4.07189985,2455.9,2455.7,8.9971]
[1747500724106,4.07189985,2455.9,2455.8,0.94833582]
[1747500724269,4.07189985,2455.9,2455.8,1.49833582]
[1747500724608,4.07189985,2455.9,2455.8,8.764]
[1747500725148,20.28067529,2456.6,2455.9,0.55]
[1747500725149,8.7856,2456.4,2455.9,0.55]
[1747500725347,16.21,2456.4,2455.9,0.55]
[1747500725519,4.07159503,2456.1,2455.9,0.55]
[1747500725721,4.07166123,2456.0,2455.9,0.55]
[1747500725928,4.07166123,2456.0,2455.9,1.50471]
[1747500726117,4.07166123,2456.0,2455.9,0.55]
[1747500726535,4.07228407,2455.7,2455.5,18.3414]
[1747500726734,4.07194894,2455.9,2455.6,8.215]
[1747500727048,4.07195744,2455.9,2455.7,0.55]
[1747500727252,4.07176916,2456.0,2455.7,0.55]
[1747500727253,4.07175513,2456.0,2455.7,0.55]
[1747500727575,4.07126677,2456.3,2456.1,0.55]
[1747500727881,4.07132969,2456.2,2456.1,8.765]
[1747500728221,4.07073762,2456.6,2456.1,8.765]
[1747500728449,8.7856,2456.7,2456.3,0.55]
[1747500728450,12.28058868,2456.7,2456.3,0.55]
[1747500728752,4.07094611,2456.5,2456.3,0.55]
[1747500728967,4.07132969,2456.2,2456.1,0.55]
[1747500729255,4.07074766,2456.6,2456.2,0.55]
[1747500729454,7.88446937,2457.4,2456.4,0.55]
[1747500729455,0.7555,2457.1,2456.4,0.55]
[1747500729629,4.07041075,2456.8,2456.4,0.55]
[1747500730134,4.07051394,2456.7,2456.4,0.55]
[1747500731254,4.07066836,2456.6,2456.4,0.55]
[1747500731660,4.07066836,2456.6,2456.1,8.21]
[1747500731661,4.07083248,2456.5,2456.1,8.21]
[1747500731852,4.07107351,2456.4,2456.1,9.11366]
[1747500732020,0.7661,2456.6,2456.2,0.55]
[1747500732226,4.07116394,2456.3,2456.2,0.55]
[1747500732948,4.07182702,2455.9,2455.8,0.8765]
[1747500733121,4.07182702,2455.9,2455.8,8.21]
[1747500733323,4.07179608,2456.0,2455.9,0.55]
[1747500733665,4.07151806,2456.1,2456.0,0.55]
[1747500734147,8.21,2456.4,2456.0,0.55]
[1747500734148,4.07134532,2456.2,2456.0,0.55]
[1747500734349,4.07134532,2456.2,2456.1,1.426]
[1747500734766,4.07134532,2456.2,2456.1,0.55]
[1747500736867,8.9761,2456.6,2456.1,0.55]
[1747500737064,0.7906,2457.2,2456.6,0.55]
[1747500737271,0.7906,2457.2,2456.3,0.8016]
[1747500737272,0.7906,2457.4,2456.8,0.55]
[1747500737565,4.07016972,2456.9,2456.8,0.55]
[1747500737763,4.07005866,2457.0,2456.8,0.55]
[1747500738338,4.07016972,2456.9,2456.8,0.55]
[1747500738742,4.07016972,2456.9,2456.8,8.211]
[1747500738943,4.07016972,2456.9,2456.8,8.761]
[1747500740454,4.07016972,2456.9,2456.8,9.6371]
[1747500741139,16.9996,2457.4,2456.9,0.55]
[1747500741677,4.07000407,2457.0,2456.9,0.55]
[1747500742678,21.06896469,2457.4,2456.8,8.211]
[1747500742679,16.9996,2457.4,2456.8,8.211]
[1747500742874,4.07000407,2457.0,2456.9,0.55]
[1747500744483,0.7906,2457.7,2457.1,0.55]
[1747500744681,2.99181599,2457.8,2457.3,0.55]
[1747500744867,7.06049567,2457.8,2457.5,0.55]
[1747500745094,4.06886615,2457.7,2457.5,0.55]
[1747500745262,4.06901041,2457.6,2457.5,0.55]
[1747500746558,4.06901041,2457.6,2457.1,4.61982072]
[1747500746753,4.06901041,2457.6,2457.5,0.55]
[1747500748078,4.0691913,2457.5,2457.4,8.759]
[1747500748487,4.06914559,2457.6,2457.4,8.759]
[1747500749187,4.06891739,2457.7,2457.5,8.209]
[1747500749351,4.06901686,2457.6,2457.5,8.209]
[1747500750487,8.205,2458.0,2457.6,1.3452]
[1747500750679,4.06842734,2458.0,2457.6,1.3452]
[1747500750875,4.06859215,2457.9,2457.6,1.3452]
[1747500751254,6.71818262,2458.3,2457.6,5.41411723]
[1747500751472,6.71818262,2458.3,2457.8,0.55]
[1747500751473,4.06836745,2458.0,2457.8,0.55]
[1747500751869,0.7783,2458.3,2457.7,0.55]
[1747500751870,4.0686793,2457.8,2457.7,0.55]
[1747500752076,4.0686793,2457.8,2457.7,8.759]
[1747500752462,0.7783,2458.3,2457.7,9.80201]
[1747500752654,4.06840075,2458.0,2457.7,9.80201]
[1747500753472,4.06819847,2458.1,2457.7,9.80201]
[1747500753673,4.06835518,2458.0,2457.7,9.80201]
[1747500754680,4.06851756,2457.9,2457.7,9.80201]
[1747500754896,4.84618739,2458.3,2457.7,9.80201]
[1747500755116,4.0686199,2457.9,2457.7,9.80201]
[1747500755264,4.0686793,2457.8,2457.7,1.59301]
[1747500755593,4.0689779,2457.7,2457.5,0.55]
[1747500755786,4.0689779,2457.7,2457.6,8.207]
[1747500755986,4.06901041,2457.6,2457.5,0.55]